bitfinex-derivatives/quotes_BTCF0:USTF0_20250609
["timestamp","ask_amount","ask_price","bid_price","bid_amount"]
[1749505743094,0.80492877,109750.0,109740.0,0.33684813]
[1749505743285,0.80492877,109750.0,109740.0,0.70999614]
[1749505743490,0.80492877,109750.0,109740.0,0.65431799]
[1749505743690,0.80492877,109750.0,109740.0,0.65424297]
[1749505743987,0.80492877,109750.0,109740.0,0.64198564]
[1749505744193,0.80492877,109750.0,109740.0,0.64198533]
[1749505744587,0.80492877,109750.0,109740.0,0.65426743]
[1749505744788,0.80492877,109750.0,109740.0,0.6542938]
[1749505745088,0.80492877,109750.0,109740.0,0.64198533]
[1749505745387,0.80492877,109750.0,109740.0,0.27992932]
[1749505745593,0.80492877,109750.0,109740.0,0.64478592]
[1749505745790,0.80492877,109750.0,109740.0,0.65843262]
[1749505745990,0.80492877,109750.0,109740.0,0.28532581]
[1749505746190,0.80492877,109750.0,109740.0,0.29763238]
[1749505746887,0.80492877,109750.0,109740.0,0.29764226]
[1749505747088,0.80492877,109750.0,109740.0,0.63246328]
[1749505747285,0.80492877,109750.0,109740.0,0.65849728]
[1749505747485,0.80492877,109750.0,109740.0,0.65849636]
[1749505747695,0.80492877,109750.0,109740.0,0.67216893]
[1749505747895,0.80492877,109750.0,109740.0,0.67216955]
[1749505748095,0.80492877,109750.0,109740.0,0.65980753]
[1749505748298,0.80492877,109750.0,109740.0,0.67216601]
[1749505748690,0.80492877,109750.0,109740.0,0.67217308]
[1749505748891,0.80492877,109750.0,109740.0,0.67217321]
[1749505749091,0.80492877,109750.0,109740.0,0.6584946]
[1749505749392,0.80492877,109750.0,109740.0,0.40893622]
[1749505749600,0.80492877,109750.0,109740.0,0.67222119]
[1749505750095,0.80267698,109750.0,109740.0,0.70000982]
[1749505750293,0.79604966,109750.0,109740.0,0.70001136]
[1749505750496,0.79604966,109750.0,109740.0,0.32680215]
[1749505750693,0.79604966,109750.0,109740.0,0.68632589]
[1749505750994,0.79604966,109750.0,109740.0,0.68628327]
[1749505751195,0.79616251,109750.0,109740.0,0.68762587]
[1749505751394,0.79616251,109750.0,109740.0,0.69992203]
[1749505751598,0.79616251,109750.0,109740.0,0.69992711]
[1749505752402,0.79616251,109750.0,109740.0,0.69992111]
[1749505752600,0.79616251,109750.0,109740.0,0.68763616]
[1749505752794,0.79616251,109750.0,109740.0,0.68763639]
[1749505752999,0.79616251,109750.0,109740.0,0.58868794]
[1749505753200,0.79616251,109750.0,109740.0,0.57640089]
[1749505753500,0.79616251,109750.0,109740.0,0.22788699]
[1749505753699,0.79616251,109750.0,109740.0,0.31161049]
[1749505754101,0.79616251,109750.0,109740.0,0.2979581]
[1749505754398,0.79616251,109750.0,109740.0,0.29932743]
[1749505754595,1.02196106,109750.0,109740.0,0.31166893]
[1749505754892,0.71100953,109750.0,109740.0,0.31169507]
[1749505755094,0.79616251,109750.0,109740.0,0.31169507]
[1749505755396,0.79616251,109750.0,109740.0,0.2979653]
[1749505755699,0.79616251,109750.0,109740.0,0.58872456]
[1749505755894,0.79616251,109750.0,109740.0,0.57639498]
[1749505756093,0.79616251,109750.0,109740.0,0.57501172]
[1749505756295,0.79616251,109750.0,109740.0,0.57501169]
[1749505756603,0.79616251,109750.0,109740.0,0.5887178]
[1749505757101,0.79616251,109750.0,109740.0,0.69995323]
[1749505757595,0.79616251,109750.0,109740.0,0.69994517]
[1749505757800,0.79616251,109750.0,109740.0,0.68762645]
[1749505758000,0.79616251,109750.0,109740.0,0.69994544]
[1749505758197,0.79616251,109750.0,109740.0,0.69994546]
[1749505758902,0.79616251,109750.0,109740.0,0.69994543]
[1749505759289,0.79616251,109750.0,109740.0,0.6862385]
[1749505759493,0.79616251,109750.0,109740.0,0.68762661]
[1749505759700,0.79616251,109750.0,109740.0,0.69993892]
[1749505760099,1.11808339,109750.0,109740.0,0.69993892]
[1749505760298,1.11808339,109750.0,109740.0,0.82833892]
[1749505760499,1.11808339,109750.0,109740.0,0.8282744]
[1749505760702,1.11808339,109750.0,109740.0,0.82827714]
[1749505760899,1.11808339,109750.0,109740.0,0.81457221]
[1749505761194,1.11808339,109750.0,109740.0,0.81457214]
[1749505761395,0.97928339,109750.0,109740.0,0.80232345]
[1749505761601,0.97928339,109750.0,109740.0,0.81454492]
[1749505761794,0.97928339,109750.0,109740.0,0.96245039]
[1749505761996,0.39100339,109750.0,109740.0,0.96245039]
[1749505762196,0.97920339,109750.0,109740.0,0.96243904]
[1749505762598,0.97920339,109750.0,109740.0,0.94873353]
[1749505762802,0.97920339,109750.0,109740.0,0.95024189]
[1749505763003,0.97920339,109750.0,109740.0,0.69982396]
[1749505763199,0.97920339,109750.0,109740.0,0.69990069]
[1749505763200,1.11650339,109750.0,109740.0,0.69990069]
[1749505763404,1.11650339,109750.0,109740.0,0.33910735]
[1749505763704,1.11650339,109750.0,109740.0,0.3391911]
[1749505763910,1.11650339,109750.0,109740.0,0.58875619]
[1749505764605,1.11650339,109750.0,109740.0,0.31177044]
[1749505764905,1.11650339,109750.0,109740.0,0.21562294]
[1749505765300,1.11650339,109750.0,109740.0,0.22798312]
[1749505765496,1.11650339,109750.0,109740.0,0.58878312]
[1749505766104,1.11650339,109750.0,109740.0,0.57499295]
[1749505766303,1.11650339,109750.0,109740.0,0.5887335]
[1749505766499,1.11650339,109750.0,109740.0,0.57642738]
[1749505766801,1.11650339,109750.0,109740.0,0.58873262]
[1749505767001,1.11650339,109750.0,109740.0,0.68766288]
[1749505767201,1.11650339,109750.0,109740.0,0.69996826]
[1749505767403,1.11650339,109750.0,109740.0,0.33916826]
[1749505767702,1.11650339,109750.0,109740.0,0.33916997]
[1749505767905,1.11650339,109750.0,109740.0,0.33922179]
[1749505768100,1.11650339,109750.0,109740.0,0.32686887]
[1749505768301,1.11650339,109750.0,109740.0,0.32548988]
[1749505768605,1.11650339,109750.0,109740.0,0.31312345]
[1749505768906,1.11650339,109750.0,109740.0,0.33921039]
[1749505769706,1.11650339,109750.0,109740.0,0.31312345]
[1749505769908,1.11650339,109750.0,109740.0,0.33921293]
[1749505770111,1.10762394,109750.0,109740.0,0.32546727]
[1749505770304,1.10762394,109750.0,109740.0,0.33922242]
[1749505770507,1.10762394,109750.0,109740.0,0.33922232]
[1749505771702,1.10762394,109750.0,109740.0,0.31312345]
[1749505771910,1.10762394,109750.0,109740.0,0.33916028]
[1749505772108,1.10762394,109750.0,109740.0,0.32540236]
[1749505772304,1.10762394,109750.0,109740.0,0.33915991]
[1749505773314,1.10762394,109750.0,109740.0,0.33910197]
[1749505773509,1.10762394,109750.0,109740.0,0.31312345]
[1749505773711,1.10762394,109750.0,109740.0,0.33910978]
[1749505773911,1.10762394,109750.0,109740.0,0.33910983]
[1749505774410,0.38212394,109750.0,109740.0,0.33910983]
[1749505774621,0.67262583,109750.0,109740.0,0.70230838]
[1749505774810,0.00011285,109750.0,109740.0,0.97257645]
[1749505775111,0.00051285,109750.0,109740.0,1.57503492]
[1749505775318,0.12331285,109750.0,109740.0,1.57503492]
[1749505775519,0.12291285,109750.0,109740.0,1.34923418]
[1749505775716,0.12331285,109750.0,109740.0,1.33549417]
[1749505775916,0.12331285,109750.0,109740.0,1.34923351]
[1749505776116,0.00051285,109750.0,109740.0,1.34923351]
[1749505776313,0.12331285,109750.0,109740.0,1.40211846]
[1749505776513,0.12331285,109750.0,109740.0,1.54179996]
[1749505776917,0.12331285,109750.0,109740.0,1.54179988]
[1749505777122,0.12331285,109750.0,109740.0,1.54190019]
[1749505777413,0.12331285,109750.0,109740.0,1.75386634]
[1749505777620,0.00013637,109760.0,109750.0,0.1821452]
[1749505777816,0.00013637,109760.0,109750.0,1.64790374]
[1749505778416,0.00013637,109760.0,109750.0,1.64790175]
[1749505778617,0.00013637,109760.0,109750.0,1.64773242]
[1749505778816,0.00353637,109760.0,109750.0,1.64873242]
[1749505779120,0.00353637,109760.0,109750.0,1.6625477]
[1749505779418,0.00353637,109760.0,109750.0,1.50904375]
[1749505779620,0.00653637,109760.0,109750.0,1.52385881]
[1749505780015,0.00653637,109760.0,109750.0,1.51004375]
[1749505780210,0.00653637,109760.0,109750.0,1.52361623]
[1749505780615,0.00653637,109760.0,109750.0,1.51004375]
[1749505780815,0.18866497,109760.0,109750.0,1.66318372]
[1749505781010,0.18866497,109760.0,109750.0,1.63507807]
[1749505781221,0.27381795,109760.0,109750.0,1.66314372]
[1749505781423,0.27381795,109760.0,109750.0,1.66314453]
[1749505781623,0.09168935,109760.0,109750.0,1.66314453]
[1749505782118,0.00443842,109780.0,109770.0,0.182112]
[1749505782325,0.6069853,109800.0,109790.0,0.1820789]
[1749505782521,0.69758913,109800.0,109790.0,0.61213276]
[1749505782725,0.69758913,109800.0,109790.0,0.68213545]
[1749505782928,0.76966838,109800.0,109790.0,0.97238585]
[1749505783227,0.76966838,109800.0,109790.0,0.97238582]
[1749505783228,0.52016838,109800.0,109790.0,0.97238582]
[1749505783423,0.64296838,109800.0,109790.0,0.56978258]
[1749505783624,0.64896838,109800.0,109790.0,0.61258582]
[1749505783827,0.64351753,109800.0,109790.0,0.61258582]
[1749505784127,0.64351753,109800.0,109790.0,0.61255935]
[1749505784325,0.64351753,109800.0,109790.0,0.87628152]
[1749505784523,0.64351753,109800.0,109790.0,0.88980535]
[1749505784822,0.59799453,109800.0,109790.0,1.10208007]
[1749505785024,0.60259453,109800.0,109790.0,0.56962624]
[1749505785225,0.87059453,109800.0,109790.0,0.64231172]
[1749505785622,0.87059453,109800.0,109790.0,0.09943292]
[1749505786126,0.7908965,109800.0,109790.0,0.22580419]
[1749505786431,0.60259453,109800.0,109790.0,0.23035419]
[1749505786629,0.60299453,109800.0,109790.0,1.13665536]
[1749505787233,0.60299453,109800.0,109790.0,1.26915536]
[1749505787532,0.60259453,109800.0,109790.0,1.26915536]
[1749505787831,0.60299453,109800.0,109790.0,1.26915536]
[1749505789038,0.47349453,109800.0,109790.0,1.04335681]
[1749505789228,0.38834155,109800.0,109790.0,1.26915536]
[1749505789540,0.38794155,109800.0,109790.0,1.26915536]
[1749505789729,0.20627925,109800.0,109790.0,1.310984]
[1749505790229,0.20627925,109800.0,109790.0,1.25528138]
[1749505790428,0.38794155,109800.0,109790.0,1.31081257]
[1749505790636,0.20587925,109800.0,109790.0,1.25528138]
[1749505790935,0.00013637,109810.0,109800.0,0.1820623]
[1749505791131,0.00013637,109810.0,109800.0,1.80996866]
[1749505791337,0.07254458,109810.0,109800.0,1.83821199]
[1749505791538,0.07294458,109810.0,109800.0,1.80990407]
[1749505791740,0.07254458,109810.0,109800.0,1.7266994]
[1749505791932,0.07294458,109810.0,109800.0,1.7266994]
[1749505792129,0.00053637,109810.0,109800.0,1.7266994]
[1749505792333,0.00153637,109810.0,109800.0,1.80986185]
[1749505792532,0.00113637,109810.0,109800.0,1.80986185]
[1749505792933,0.00113637,109810.0,109800.0,1.90093385]
[1749505793134,0.12276,109820.0,109810.0,0.1820457]
[1749505793336,0.12276,109820.0,109810.0,1.09437903]
[1749505793531,0.6861011,109830.0,109820.0,0.1820291]
[1749505793731,0.6861011,109830.0,109820.0,0.93988096]
[1749505793931,0.2730211,109830.0,109820.0,0.93988096]
[1749505794130,0.44299227,109840.0,109830.0,0.1820125]
[1749505794331,0.30489227,109840.0,109830.0,0.93986436]
[1749505794534,0.30489227,109840.0,109830.0,1.08046436]
[1749505794736,0.12289637,109840.0,109830.0,1.13589914]
[1749505794939,0.00013637,109840.0,109830.0,1.17750828]
[1749505795238,0.00413637,109840.0,109830.0,1.86690683]
[1749505795644,0.00753637,109840.0,109830.0,1.93087018]
[1749505795940,0.00713637,109840.0,109830.0,1.93087018]
[1749505796132,0.00753637,109840.0,109830.0,1.93087018]
[1749505796336,0.00753637,109840.0,109830.0,2.03711843]
[1749505796539,0.00753637,109840.0,109830.0,0.89027334]
[1749505796741,0.31093237,109840.0,109830.0,1.12990454]
[1749505797043,0.51824535,109840.0,109830.0,0.1820125]
[1749505797339,0.1820125,109830.0,109820.0,0.85962385]
[1749505797544,0.1820125,109830.0,109820.0,0.90106775]
[1749505797742,0.4496125,109830.0,109820.0,0.90106775]
[1749505798043,0.3208125,109830.0,109820.0,1.04186775]
[1749505798244,0.3208125,109830.0,109820.0,1.17436775]
[1749505798435,0.47859947,109840.0,109830.0,0.1820125]
[1749505798631,0.56275245,109840.0,109830.0,0.90941105]
[1749505798939,0.00013637,109840.0,109830.0,1.08335495]
[1749505799137,0.00053637,109840.0,109830.0,1.32295919]
[1749505799444,0.00013637,109840.0,109830.0,1.09716064]
[1749505799738,0.00013637,109840.0,109830.0,0.95083454]
[1749505799739,0.26768525,109840.0,109830.0,0.95083454]
[1749505799939,0.52908525,109840.0,109830.0,0.91041105]
[1749505800336,0.52908525,109840.0,109830.0,0.76961105]
[1749505800838,0.52908525,109840.0,109830.0,0.1830125]
[1749505801043,0.65120525,109840.0,109830.0,0.5438125]
[1749505802949,0.56605227,109840.0,109830.0,0.76961105]
[1749505803135,0.65120525,109840.0,109830.0,0.76961105]
[1749505803339,0.65120525,109840.0,109830.0,0.5438125]
[1749505803542,1.5788518,109840.0,109830.0,1e-07]
[1749505803743,0.1820291,109820.0,109810.0,0.00013637]
[1749505803952,0.26721518,109800.0,109790.0,0.3049066]
[1749505804144,0.1820788,109790.0,109780.0,0.36087806]
[1749505804353,0.1820788,109790.0,109750.0,0.05524959]
[1749505804354,0.045525,109780.0,109750.0,0.05524959]
[1749505804542,0.62808158,109760.0,109750.0,0.3118452]
[1749505805441,0.62815988,109760.0,109750.0,0.3118452]
[1749505805647,0.62815988,109760.0,109750.0,0.3168452]
[1749505806250,1.21343988,109760.0,109750.0,0.3168452]
[1749505807045,1.21343988,109760.0,109750.0,0.1871452]
[1749505807251,1.42290701,109760.0,109750.0,0.1871452]
[1749505807543,1.55785403,109760.0,109750.0,0.1931452]
[1749505807747,1.05772701,109760.0,109750.0,0.1931452]
[1749505807942,1.64296701,109760.0,109750.0,0.1931452]
[1749505808147,0.70192701,109760.0,109750.0,0.1931452]
[1749505808337,0.82408701,109760.0,109750.0,0.4488452]
[1749505809542,0.0010783,109760.0,109750.0,0.69643686]
[1749505809743,0.00013637,109770.0,109760.0,0.1821286]
[1749505809949,0.3042388,109790.0,109780.0,0.1820954]
[1749505810249,0.6650388,109790.0,109780.0,0.1820954]
[1749505810546,0.6650388,109790.0,109780.0,0.19558846]
[1749505810845,0.6650388,109790.0,109780.0,0.3168954]
[1749505811145,1.1280788,109790.0,109780.0,0.33038835]
[1749505811749,1.1280788,109790.0,109780.0,0.33143514]
[1749505812042,1.21323178,109790.0,109780.0,0.3178954]
[1749505812248,1.21323178,109790.0,109780.0,0.33143622]
[1749505812552,1.21323178,109790.0,109780.0,0.33343662]
[1749505812845,1.1280388,109790.0,109780.0,0.33343662]
[1749505813051,1.1280388,109790.0,109780.0,0.46503662]
[1749505813551,1.1280388,109790.0,109780.0,0.4514954]
[1749505814145,1.20074701,109790.0,109780.0,0.4514954]
[1749505814345,1.20074701,109790.0,109780.0,0.4650258]
[1749505814547,1.20074701,109790.0,109780.0,0.4514954]
[1749505814842,1.20074701,109790.0,109780.0,0.19862579]
[1749505814843,1.28589999,109790.0,109780.0,0.19862579]
[1749505815048,1.28589999,109790.0,109780.0,0.46132579]
[1749505815250,0.07270821,109790.0,109780.0,0.46132579]
[1749505815452,1.05145007,109800.0,109790.0,0.1820788]
[1749505815648,1.25876305,109800.0,109790.0,0.4447788]
[1749505815846,0.89796305,109800.0,109790.0,0.4447788]
[1749505816051,1.25876305,109800.0,109790.0,0.4447788]
[1749505816245,1.25916305,109800.0,109790.0,0.4447788]
[1749505817053,1.40006305,109800.0,109790.0,0.4447788]
[1749505817346,1.40106305,109800.0,109790.0,0.4447788]
[1749505817552,1.26016305,109800.0,109790.0,0.4447788]
[1749505818144,1.26016305,109800.0,109790.0,0.3120788]
[1749505818343,1.55357444,109800.0,109790.0,0.1820788]
[1749505819045,1.47207444,109800.0,109790.0,0.1820788]
[1749505819249,1.47207444,109800.0,109790.0,0.4511788]
[1749505820753,1.47107444,109800.0,109790.0,0.4521788]
[1749505821548,1.38592146,109800.0,109790.0,0.4521788]
[1749505821749,1.47107444,109800.0,109790.0,0.4541788]
[1749505822256,1.33017444,109800.0,109790.0,0.3220788]
[1749505822555,1.46747444,109800.0,109790.0,0.3220788]
[1749505823158,1.46747444,109800.0,109790.0,0.4524788]
[1749505824750,1.33017444,109800.0,109790.0,0.4524788]
[1749505825746,0.43234776,109800.0,109790.0,0.5862788]
[1749505825951,0.15630074,109800.0,109790.0,0.83387046]
[1749505826256,1.19869006,109800.0,109790.0,0.83387046]
[1749505826455,1.19869006,109800.0,109790.0,0.64162073]
[1749505826656,1.19909006,109800.0,109790.0,0.64162073]
[1749505827058,1.19869006,109800.0,109790.0,0.64162073]
[1749505827357,1.19909006,109800.0,109790.0,0.64162073]
[1749505829352,1.19869006,109800.0,109790.0,0.66929671]
[1749505829560,0.55450776,109800.0,109790.0,0.66929671]
[1749505829755,0.07154776,109800.0,109790.0,1.27768837]
[1749505829962,0.65546776,109800.0,109790.0,1.27768837]
[1749505830154,0.83753006,109800.0,109790.0,0.91688837]
[1749505830458,0.83713006,109800.0,109790.0,0.91688837]
[1749505830861,0.83753006,109800.0,109790.0,0.91688837]
[1749505831354,0.83753006,109800.0,109790.0,0.94538305]
[1749505831760,0.37517006,109800.0,109790.0,0.94538305]
[1749505832259,0.00053637,109800.0,109790.0,0.94538305]
[1749505832460,0.00013637,109800.0,109790.0,1.30618305]
[1749505832655,0.00053637,109800.0,109790.0,1.30618305]
[1749505832860,0.00053637,109800.0,109790.0,1.33435913]
[1749505833257,1.62152,109810.0,109800.0,0.1820623]
[1749505833457,1.62152,109810.0,109800.0,0.67108317]
[1749505833663,0.41296,109820.0,109810.0,0.1820457]
[1749505833857,0.41296,109820.0,109810.0,0.78162166]
[1749505833858,0.48690311,109820.0,109810.0,0.78162166]
[1749505834168,0.41336,109820.0,109810.0,0.80948099]
[1749505834357,0.41296,109820.0,109810.0,1.17028099]
[1749505834555,0.41336,109820.0,109810.0,1.17028099]
[1749505834958,0.41536,109820.0,109810.0,1.17028099]
[1749505835158,0.0024,109820.0,109810.0,1.17028099]
[1749505835864,0.0034,109820.0,109810.0,1.17028099]
[1749505836260,0.0014,109820.0,109810.0,1.17028099]
[1749505836457,0.0024,109820.0,109810.0,1.17028099]
[1749505836874,0.0024,109820.0,109810.0,1.76552099]
[1749505837056,0.0014,109820.0,109810.0,1.76552099]
[1749505837257,0.0014,109820.0,109810.0,1.05588933]
[1749505837466,0.0014,109820.0,109810.0,1.76548099]
[1749505839968,0.0014,109820.0,109810.0,1.54424308]
[1749505840169,0.0014,109820.0,109810.0,1.40455441]
[1749505840369,0.0014,109820.0,109810.0,1.76535441]
[1749505841279,0.0014,109820.0,109810.0,1.7437926]
[1749505842378,0.0014,109820.0,109810.0,1.3829926]
[1749505843377,0.0014,109820.0,109810.0,1.7437926]
[1749505844776,0.0014,109820.0,109810.0,1.7435526]
[1749505848182,0.0014,109820.0,109810.0,1.05588275]
[1749505848382,0.0014,109820.0,109810.0,1.7433926]
[1749505848881,0.0014,109820.0,109810.0,1.3825926]
[1749505853383,0.0014,109820.0,109810.0,1.15656275]
[1749505853579,0.0014,109820.0,109810.0,1.27156997]
[1749505853883,0.0014,109820.0,109810.0,1.41125864]
[1749505856787,0.0014,109820.0,109810.0,1.18522879]
[1749505857085,0.0014,109820.0,109810.0,1.41125864]
[1749505859287,0.0014,109820.0,109810.0,1.85839982]
[1749505859485,0.0014,109820.0,109810.0,1.63236997]
[1749505859688,0.0014,109820.0,109810.0,1.17088997]
[1749505859880,0.0014,109820.0,109810.0,1.63188997]
[1749505860188,0.0014,109820.0,109810.0,1.63594657]
[1749505860383,0.0014,109820.0,109810.0,1.17494657]
[1749505860589,0.0014,109820.0,109810.0,1.63590657]
[1749505860787,0.0014,109820.0,109810.0,1.77559524]
[1749505861393,0.0014,109820.0,109810.0,1.31463524]
[1749505861688,0.0014,109820.0,109810.0,1.17494657]
[1749505861891,0.0014,109820.0,109810.0,1.8280586]
[1749505862188,0.0014,109820.0,109810.0,1.8280186]
[1749505862583,0.0014,109820.0,109810.0,1.17494657]
[1749505862783,0.0014,109820.0,109810.0,1.63582657]
[1749505863189,0.0014,109820.0,109810.0,1.83083824]
[1749505863886,0.0014,109820.0,109810.0,1.14396839]
[1749505864085,0.0014,109820.0,109810.0,1.83079824]
[1749505864684,0.0004,109820.0,109810.0,1.83279824]
[1749505864883,0.0004,109820.0,109810.0,1.63774657]
[1749505865286,0.0004,109820.0,109810.0,1.41171672]
[1749505865491,0.0004,109820.0,109810.0,1.63774657]
[1749505866292,0.0004,109820.0,109810.0,1.83579824]
[1749505867086,0.0004,109820.0,109810.0,1.37499824]
[1749505867383,0.0004,109820.0,109810.0,1.83567824]
[1749505868894,0.0004,109820.0,109810.0,1.83559824]
[1749505869087,0.0004,109820.0,109810.0,0.87746839]
[1749505869289,0.08555298,109820.0,109810.0,1.56405824]
[1749505869490,0.08555298,109820.0,109810.0,1.69575824]
[1749505870190,0.08555298,109820.0,109810.0,1.82285824]
[1749505870501,0.0004,109820.0,109810.0,1.82281824]
[1749505870890,0.07319842,109830.0,109820.0,0.1820291]
[1749505871097,0.1583514,109830.0,109820.0,1.22937895]
[1749505871283,0.00013637,109830.0,109820.0,1.48587895]
[1749505871484,0.08528935,109830.0,109820.0,1.45490077]
[1749505871692,0.08528935,109830.0,109820.0,1.68093062]
[1749505872198,0.00053637,109830.0,109820.0,1.68393062]
[1749505872398,0.00013637,109830.0,109820.0,1.68393062]
[1749505872895,0.00053637,109830.0,109820.0,1.68393062]
[1749505873289,0.00013637,109830.0,109820.0,1.68393062]
[1749505873484,0.00053637,109830.0,109820.0,1.68393062]
[1749505873889,0.00013637,109830.0,109820.0,1.68393062]
[1749505874085,0.00053637,109830.0,109820.0,1.68393062]
[1749505874291,0.00053637,109830.0,109820.0,1.45790077]
[1749505874890,0.00053637,109830.0,109820.0,1.68393062]
[1749505878194,0.00053637,109830.0,109820.0,1.22341062]
[1749505878395,0.00053637,109830.0,109820.0,1.68357062]
[1749505879195,0.00053637,109830.0,109820.0,1.22341062]
[1749505879406,0.00053637,109830.0,109820.0,1.68353062]
[1749505880299,0.00053637,109830.0,109820.0,1.68758722]
[1749505882397,0.00053637,109830.0,109820.0,1.68746722]
[1749505883500,0.3944,109850.0,109840.0,0.1819959]
[1749505883706,0.9556428,109860.0,109850.0,0.1819794]
[1749505883901,0.9556428,109860.0,109850.0,0.40800925]
[1749505883902,1.43719578,109860.0,109850.0,0.40800925]
[1749505884089,1.43759578,109860.0,109850.0,0.40800925]
[1749505884490,1.19485701,109860.0,109850.0,0.54480925]
[1749505884699,1.19525701,109860.0,109850.0,0.78590083]
[1749505884902,1.37821981,109860.0,109850.0,0.78590083]
[1749505885293,1.37821981,109860.0,109850.0,0.55987098]
[1749505885499,1.37821981,109860.0,109850.0,0.65610083]
[1749505885700,1.09693981,109860.0,109850.0,0.65610083]
[1749505885901,1.09693981,109860.0,109850.0,1.11598083]
[1749505886102,0.51857701,109860.0,109850.0,1.11598083]
[1749505886395,0.51817701,109860.0,109850.0,0.97914083]
[1749505886602,0.78007701,109860.0,109850.0,0.97914083]
[1749505886894,0.51857701,109860.0,109850.0,0.97914083]
[1749505887096,0.44735298,109860.0,109850.0,1.37934083]
[1749505887296,0.08655298,109860.0,109850.0,1.7679679]
[1749505887498,0.08615298,109860.0,109850.0,1.7679679]
[1749505887693,0.08655298,109860.0,109850.0,1.7679679]
[1749505887894,0.08655298,109860.0,109850.0,1.7816179]
[1749505888098,0.08655298,109860.0,109850.0,1.55558805]
[1749505888301,0.08655298,109860.0,109850.0,1.7816179]
[1749505888494,0.0014,109860.0,109850.0,1.7816179]
[1749505888902,0.001,109860.0,109850.0,1.7816179]
[1749505889097,0.0014,109860.0,109850.0,1.7816179]
[1749505889398,0.9292888,109860.0,109850.0,0.00455]
[1749505889604,1.33531285,109860.0,109850.0,0.087896]
[1749505889790,1.33531285,109860.0,109850.0,0.00455]
[1749505890104,1.109683,109860.0,109850.0,0.04624518]
[1749505890293,1.109683,109860.0,109850.0,0.00455]
[1749505890891,0.768651,109860.0,109850.0,0.00455]
[1749505891207,0.8407769,109860.0,109850.0,0.00455]
[1749505891502,0.8407769,109860.0,109850.0,0.00555]
[1749505891698,1.3004569,109860.0,109850.0,0.00555]
[1749505892198,1.3014569,109860.0,109850.0,0.00455]
[1749505892604,1.4378569,109860.0,109850.0,0.00455]
[1749505892999,1.5689569,109860.0,109850.0,0.00455]
[1749505893207,1.5689569,109860.0,109850.0,0.04624723]
[1749505893505,1.9099889,109860.0,109850.0,0.04624723]
[1749505894098,1.9099889,109860.0,109850.0,0.04624905]
[1749505894498,2.13601875,109860.0,109850.0,0.00455]
[1749505894699,1.9099889,109860.0,109850.0,0.00455]
[1749505895205,1.6599889,109860.0,109850.0,0.00455]
[1749505895406,1.88601875,109860.0,109850.0,0.00455]
[1749505895606,1.88601875,109860.0,109850.0,0.0086066]
[1749505896207,1.9099889,109860.0,109850.0,0.0086066]
[1749505896408,2.3620486,109860.0,109850.0,0.0086066]
[1749505896705,0.1819793,109850.0,109840.0,0.00013637]
[1749505897006,0.1820125,109830.0,109820.0,0.09727194]
[1749505897210,0.1820125,109830.0,109820.0,0.04169905]
[1749505897211,1.8164722,109830.0,109820.0,0.04169905]
[1749505897506,2.1575282,109830.0,109820.0,0.04169905]
[1749505897716,0.1820291,109820.0,109810.0,0.04181347]
[1749505897904,1.54021895,109820.0,109810.0,0.04194984]
[1749505898201,0.0455139,109810.0,109780.0,0.08341132]
[1749505898401,0.227656,109770.0,109760.0,0.1821271]
[1749505898714,1.68221615,109770.0,109760.0,0.2276589]
[1749505898912,1.81421615,109770.0,109760.0,0.3630589]
[1749505899209,1.79034731,109770.0,109760.0,0.3630589]
[1749505899410,1.5427738,109770.0,109760.0,0.2276589]
[1749505899614,1.5427738,109770.0,109760.0,0.2326589]
[1749505899806,1.79034731,109770.0,109760.0,0.3680589]
[1749505900207,0.9493738,109770.0,109760.0,0.37596769]
[1749505900403,1.3666437,109770.0,109760.0,0.51786769]
[1749505901010,1.3666437,109770.0,109760.0,0.3740589]
[1749505901315,1.4986437,109770.0,109760.0,0.3740589]
[1749505902911,1.57067428,109770.0,109760.0,0.3740589]
[1749505903305,1.57067428,109770.0,109760.0,0.5063589]
[1749505905613,1.57067428,109770.0,109760.0,0.3285286]
[1749505905922,1.57067428,109770.0,109760.0,0.1931286]
[1749505905923,1.69177428,109770.0,109760.0,0.1931286]
[1749505906110,1.69177428,109770.0,109760.0,0.011]
[1749505906316,1.69177428,109770.0,109760.0,0.1931286]
[1749505907008,1.69177428,109770.0,109760.0,0.011]
[1749505907208,1.69177428,109770.0,109760.0,0.1931286]
[1749505907518,1.78287828,109770.0,109760.0,0.1931286]
[1749505908619,0.1821783,109730.0,109720.0,0.2869454]
[1749505908917,0.1821783,109730.0,109720.0,0.68641386]
[1749505908918,1.3648983,109730.0,109720.0,0.68641386]
[1749505909523,1.3648983,109730.0,109720.0,0.6740754]
[1749505909717,1.3658983,109730.0,109720.0,0.69545316]
[1749505909913,1.3658983,109730.0,109720.0,0.69543167]
[1749505910218,1.4871383,109730.0,109720.0,0.6930754]
[1749505910517,1.4870983,109730.0,109720.0,0.70341341]
[1749505911028,0.9057783,109730.0,109720.0,0.70038664]
[1749505911324,1.4874583,109730.0,109720.0,0.6880754]
[1749505912020,1.4874583,109730.0,109720.0,0.70041053]
[1749505912414,1.4874583,109730.0,109720.0,0.56341053]
[1749505913109,1.4874583,109730.0,109720.0,0.56361165]
[1749505913523,1.4874583,109730.0,109720.0,0.56361167]
[1749505913820,1.4874583,109730.0,109720.0,0.5636118]
[1749505914717,1.4874583,109730.0,109720.0,0.56360964]
[1749505914917,1.4874583,109730.0,109720.0,0.56360564]
[1749505915322,1.4874583,109730.0,109720.0,0.5510754]
[1749505915523,1.4874583,109730.0,109720.0,0.56364214]
[1749505916115,1.4874583,109730.0,109720.0,0.57701764]
[1749505916319,1.4874583,109730.0,109720.0,0.56364988]
[1749505916524,1.4874583,109730.0,109720.0,0.5770128]
[1749505916824,1.4874583,109730.0,109720.0,0.57702571]
[1749505917027,1.4874583,109730.0,109720.0,0.56445471]
[1749505917228,1.4874583,109730.0,109720.0,0.5510754]
[1749505917427,1.4874583,109730.0,109720.0,0.57702835]
[1749505917930,0.9057783,109730.0,109720.0,0.57702835]
[1749505918130,1.4861783,109730.0,109720.0,0.56364884]
[1749505918327,1.4861783,109730.0,109720.0,0.56448519]
[1749505918727,1.4861783,109730.0,109720.0,0.5771226]
[1749505919033,1.4861783,109730.0,109720.0,0.57712264]
[1749505919532,1.48025819,109730.0,109720.0,0.57712264]
[1749505919927,1.48025819,109730.0,109720.0,0.56448524]
[1749505920122,1.48025819,109730.0,109720.0,0.56452262]
[1749505920323,1.48025819,109730.0,109720.0,0.56452269]
[1749505920530,0.3628,109730.0,109720.0,0.82000499]
[1749505920732,0.36093637,109740.0,109730.0,0.1821783]
[1749505921029,0.3608,109750.0,109740.0,0.1821617]
[1749505921239,0.3608,109760.0,109750.0,0.1821451]
[1749505921447,0.94124,109760.0,109750.0,0.47493137]
[1749505921640,0.3608,109760.0,109750.0,0.72250488]
[1749505921838,0.3608,109760.0,109750.0,0.7099296]
[1749505922038,0.3608,109760.0,109750.0,0.72205061]
[1749505922238,0.821,109760.0,109750.0,0.47446755]
[1749505922538,0.821,109760.0,109750.0,0.6964274]
[1749505922746,0.821,109760.0,109750.0,0.72203738]